Cogmind - Beta 16 @@@ ROGUE MODE // 2026.01.26 @ 22:43:05 Player: Artackni Result: Destroyed by B-75 Beast with Heavy Plasma Cannon Performance ------------- Evolutions (4) 2000 Regions Visited (7) 1400 Robots Destroyed (119) 595 Value Destroyed (4015) 4015 Prototype IDs (9) 180 Alien Tech Used (0) 0 Bonus (16) 16 TOTAL SCORE: 8206 Bonus ------- High Alert Combat Kills 16 Cogmind --------- Core Integrity 0/850 Matter 290/300 Energy 99/100 System Corruption 9% Temperature Cool (12) Movement Core (50) Location -6/Extension Parts ------- > --- POWER (1) -------- (None) > --- PROPULSION (4) --- (None) > --- UTILITY (7) ------ Structural Scanner Enhanced Optical Array Advanced Signal Interpreter Advanced Terrain Scan Processor Advanced Melee Analysis Suite Focal Shield > --- WEAPON (3) ------- (None) > --- INVENTORY (5) ---- Light Fission Core Improved Cryofiber Web Improved Matter Compressor (300) Improved Reaction Control System Magnetic Acceleration Cannon Peak State ------------ > --- POWER ------------ Fission-Deuterium Core > --- PROPULSION ------- Wheeled Gravmag-Compact Exoskeleton Wheel Armored Huge Wheel > --- UTILITY ---------- Armored Scrap Engine Improved Heat Sink Improved Heat Sink Large Storage Unit Advanced Signal Interpreter Advanced Targeting Computer > --- WEAPON ----------- Heavy Particle Gun Compact Ion Cannon High-powered Shotgun > --- INVENTORY -------- Reinforced Deuterium Engine Armored Treads Aerolev Unit Power Amplifier Improved Cryofiber Web Cooling System Structural Scanner Enhanced Optical Array Advanced Signal Interpreter Advanced Melee Analysis Suite Reaction Control System Hardlight Generator Shock Rifle Shock Rifle [Rating: 70] Favorites ----------- Power Improved Ion Engine Engine Improved Ion Engine Power Core Micro Nuclear Core Propulsion Improved Treads Treads Improved Treads Leg Flexi-carbon Leg Wheel Wheel Utility Large Storage Unit Device Cooling System Storage Large Storage Unit Processor Advanced Signal Interpreter Protection Light Armor Plating Weapon Compact Ion Cannon Energy Gun EM Shotgun Energy Cannon Compact Ion Cannon Ballistic Gun Gauss Rifle Ballistic Cannon Magnetic Acceleration Cannon Launcher Improved Proton Missile Launcher Build | -11 -10 -10 -8 -8 -8 -6 -6 ------- Run | Yrd Mat Sub Mat Sto Rec Fac Ext Slots Evolved 8 | . . . 4 . . 4 . Power . | . . . . . . . . Propulsion 2 | . . . 1 . . 1 . Utility 5 | . . . 2 . . 3 . Weapon 1 | . . . 1 . . . . Parts Attached 93 | 6 16 2 13 17 6 30 3 Power 9 | 1 4 . . 1 1 2 . Engine 8 | 1 4 . . 1 1 1 . Core 1 | . . . . . . 1 . Reactor . | . . . . . . . . Propulsion 23 | 2 4 . 5 4 1 7 . Treads 11 | . 2 . 4 4 . 1 . Leg 3 | . . . 1 . . 2 . Wheel 9 | 2 2 . . . 1 4 . Hover . | . . . . . . . . Flight . | . . . . . . . . Utility 35 | 1 4 2 3 6 2 15 2 Device 15 | 1 1 2 1 3 1 6 . Storage 2 | . 1 . . . . . 1 Processor 6 | . . . . . . 5 1 Hackware . | . . . . . . . . Protection 12 | . 2 . 2 3 1 4 . Artifact . | . . . . . . . . Weapon 26 | 2 4 . 5 6 2 6 1 Energy Gun 10 | 1 2 . 2 2 1 2 . Energy Cannon 6 | . 1 . . 4 1 . . Ballistic Gun 4 | 1 . . 2 . . 1 . Ballistic Cannon 4 | . 1 . . . . 2 1 Launcher 2 | . . . 1 . . 1 . Special Weapon . | . . . . . . . . Impact Weapon . | . . . . . . . . Slashing Weapon . | . . . . . . . . Piercing Weapon . | . . . . . . . . Special Melee Weapon . | . . . . . . . . Unidentified Prototypes 4 | . . . . 2 1 . 1 Corrupted Parts 1 | . . . 1 . . . . System Corruption 5 | . . . 5 . . . . Parts Lost 53 | . 5 . 8 9 4 27 . Power 5 | . 2 . . . 1 2 . Propulsion 14 | . . . 3 1 2 8 . Utility 19 | . 2 . 1 5 . 11 . Weapon 15 | . 1 . 4 3 1 6 . Highest Loss Streak 12 | . 3 . 3 2 3 12 . To Critical Strikes . | . . . . . . . . Average Backups 11 | 2 11 15 12 12 10 11 4 Power 1 | . 1 2 2 2 1 1 1 Propulsion 3 | 1 4 5 3 4 4 1 . Utility 4 | . 2 4 3 2 3 7 3 Weapon 2 | . 2 4 2 2 1 2 . Tool/Special . | . . . . . . . . Unused Backups 29 | . 7 . 3 5 4 8 2 Power 7 | . 2 . . 1 1 3 . Propulsion 12 | . 3 . 2 1 3 3 . Utility 4 | . . . . . . 2 2 Weapon 6 | . 2 . 1 3 . . . Tool/Special . | . . . . . . . . Average Slot Usage (%) 84 | . 98 100 84 92 79 72 36 Engine 7 | . 13 14 9 9 8 1 . Core 1 | . . . . . . 4 . Treads 12 | . 7 28 25 26 8 2 . Leg 1 | . . . . . . 5 . Wheel 7 | . 20 . . . 7 8 . Device 12 | . 8 14 8 12 18 13 13 Storage 9 | . 12 14 9 9 9 5 . Processor 2 | . . . . . . 7 23 Protection 4 | . 5 . 7 11 1 5 . Energy Gun 9 | . 17 28 11 2 7 3 . Energy Cannon 6 | . . . 4 12 18 4 . Ballistic Gun 3 | . 6 . 8 9 . 2 . Ballistic Cannon 2 | . 3 . . . . 4 . Peak Build Rating 70 | 6 15 15 25 31 51 70 29 Average Rating 32 | 4 9 14 19 26 37 54 24 On Entrance 20 | . 6 15 15 25 30 48 22 Avg Prop Armor Cover (%) 6 | . . . . . 8 4 . Naked Turns 1 | . . . . . . 1 . Heaviest Build 79 | 8 36 35 46 50 50 79 2 Greatest Support 66 | 26 46 46 66 66 60 56 3 Greatest Overweight (x) 7 | . 1 . . 1 1 7 . Average Overweight (x) . | . . . . . . . . Largest Inventory Capacity 15 | 5 15 15 15 15 15 15 5 Average Capacity 14 | 5 14 15 15 15 15 14 5 Most Carried 15 | 4 15 15 15 15 15 15 5 Average Carried 12 | 2 11 15 12 14 11 12 4 Final Capacity 15 | 5 15 15 15 15 15 5 5 Final Carried 15 | 4 15 15 15 15 11 5 5 Scrap Engine Consumption 37 | . . . . . 12 25 . Constructs Created 10 | . . . . . 3 7 . Constructs Modified 2 | . . . . . . 2 . Class Distribution -------------------- 49% | Mutant 19% | Gunner 18% | Scavenger-Tank 5% | Tank 4% | Scavenger-Gunner Dominant Class ---------------- Mutant | -10/Materials Mutant | -10/Subcaves Mutant | -8/Materials Scavenger-Tank | -8/Storage Gunner | -8/Recycling Mutant | -6/Factory Mutant | -6/Extension Resources | -11 -10 -10 -8 -8 -8 -6 -6 ----------- Run | Yrd Mat Sub Mat Sto Rec Fac Ext Matter Collected 2533 | 276 308 41 219 495 170 1014 10 Remotely . | . . . . . . . . Salvage Created 4466 | 65 467 145 817 1199 248 1525 . Parts 256 | 6 36 16 41 55 9 93 . Haulers Intercepted 3 | . 1 . 1 1 . . . Recyclers Shooed 6 | 1 . . . 2 1 2 . Parts Field Recycled . | . . . . . . . . Retrieved Matter . | . . . . . . . . Parts Self-Destructed 8 | . . 8 . . . . . Prevented 1 | . . 1 . . . . . Parts Restored . | . . . . . . . . Kills | -11 -10 -10 -8 -8 -8 -6 -6 ------- Run | Yrd Mat Sub Mat Sto Rec Fac Ext Combat Hostiles Destroyed 94 | . 14 6 17 21 6 30 . Guns 45 | . 12 3 9 8 1 12 . Cannons 36 | . 2 . 2 12 4 16 . AOE 10 | . . 3 6 . . 1 . Classes Destroyed 16 | 1 5 1 5 1 . 3 . Worker 6 | . 1 . . . . 5 . Builder 7 | . 2 . . 1 . 4 . Tunneler 5 | 3 . . 1 . . 1 . Hauler 3 | . 1 . 1 1 . . . Recycler 2 | . . . . 1 . 1 . Operator 2 | . . . . . . 2 . Swarmer 31 | . 9 4 . 3 . 15 . Grunt 26 | . 5 . 7 11 . 3 . Brawler 1 | . . . 1 . . . . Duelist 3 | . . . 3 . . . . Protector 2 | . . . 2 . . . . Sentry 10 | . . . 2 7 . 1 . Hunter 7 | . . . 2 . . 5 . Programmer 5 | . . . . . . 5 . Behemoth 1 | . . . . . . 1 . Subdweller 8 | . . 2 . . 6 . . Best Kill Streak 8 | 2 7 4 8 5 2 7 . Combat Bots Only 7 | . 3 4 7 3 2 7 . Max Kills in Single Turn 4 | 2 1 3 3 2 1 4 . Gunslinging 1 | . . . 1 . . . . Exploded 3 | . . 3 2 . . 1 . Melee . | . . . . . . . . Uniques/NPCs Destroyed . | . . . . . . . . Combat | -11 -10 -10 -8 -8 -8 -6 -6 -------- Run | Yrd Mat Sub Mat Sto Rec Fac Ext Hostile Shots Fired 799 | . 92 20 63 140 29 448 7 Missed 230 | . 18 9 16 32 9 142 4 Hits 569 | . 74 11 47 108 20 306 3 Melee 7 | . . . 6 1 . . . Projectile 562 | . 74 11 41 107 20 306 3 Critical Strikes 23 | . 1 1 2 7 . 12 . Actively Blocked 2 | . . . . 2 . . . Damage Taken 9407 | . 678 162 942 1581 404 5578 62 Core 1497 | . 177 33 90 263 59 813 62 Absorbed by Shields . | . . . . . . . . Redirected to Shielding 100 | . . . . 100 . . . Ignored by Resistances 9 | . . . . . . . 9 Regen/Repaired (Parts) 35 | . . . . . . 35 . Core Remaining (%) 47 | 100 . 16 . . 25 . . Volleys Fired 337 | 7 70 9 29 76 25 120 1 Largest 3 | 2 2 2 3 3 3 3 1 Hottest 220 | 70 110 90 135 187 220 171 44 Shots Fired 684 | 14 133 18 69 151 49 249 1 Gun 401 | 14 130 18 55 75 9 100 . Cannon 275 | . 3 . 11 76 40 144 1 Launcher 8 | . . . 3 . . 5 . Special . | . . . . . . . . Kinetic 301 | 7 59 . 22 65 4 143 1 Thermal 286 | 7 68 . 11 59 40 101 . Explosive 3 | . . . 3 . . . . Electromagnetic 94 | . 6 18 33 27 5 5 . Robot Hit Streak 17 | 3 15 13 16 17 10 12 . Robot Miss Streak 6 | 2 6 2 3 5 3 4 . Penetration Max 2 | . . . 1 1 . 2 . Secondary Targets 2 | . . . 1 . . 1 . Max Gunslinging Chain 1 | . . . 1 . . 1 . Shots Hit Robots 440 | 9 79 15 49 106 29 153 . Core Hits 198 | 4 25 12 45 36 6 70 . Critical Kills 3 | . . . . 1 1 1 . Critical Parts Destroyed 1 | . . . . 1 . . . Critical Strikes 20 | . 7 . . 4 2 7 . Burn 10 | . 7 . . 2 . 1 . Meltdown 1 | . . . . . 1 . . Destroy 3 | . . . . 2 . 1 . Blast 5 | . . . . . . 5 . Corrupt 1 | . . . . . 1 . . Melee Attacks . | . . . . . . . . Impact . | . . . . . . . . Slashing . | . . . . . . . . Piercing . | . . . . . . . . Sneak Attacks . | . . . . . . . . Combat Hostiles . | . . . . . . . . Follow-up Attacks . | . . . . . . . . Damage Inflicted 11335 | 121 1007 309 1720 2518 716 4944 . Guns 4701 | 121 954 203 783 1115 142 1383 . Cannons 4837 | . 53 . 105 1403 574 2702 . Explosions 1792 | . . 106 832 . . 854 . Melee . | . . . . . . . . Ramming 5 | . . . . . . 5 . Kinetic 4104 | 72 417 . 312 1011 87 2205 . Thermal 4441 | 49 522 106 438 882 555 1889 . Explosive 652 | . . . 499 . . 153 . Electromagnetic 2133 | . 68 203 471 625 74 692 . Impact . | . . . . . . . . Slashing . | . . . . . . . . Piercing . | . . . . . . . . Highest Corruption 9 | . . . 5 5 5 9 9 Average Corruption 5 | . . . 5 5 5 5 9 Corruption Purged . | . . . . . . . . Corruption Blocked . | . . . . . . . . Effects 116 | . . . 6 24 27 55 4 Message Errors 22 | . . . 1 4 6 11 . Matter Fused 33 | . . . 2 5 11 12 3 Heat Flow Errors 12 | . . . 1 . 3 8 . Energy Discharges 10 | . . . . 4 1 5 . Parts Rejected 4 | . . . . 1 1 2 . Parts Fused 2 | . . . 1 1 . . . Data Loss (minor) 14 | . . . 1 4 3 6 . Data Loss (major) 4 | . . . . . 1 2 1 Misfires 9 | . . . . 2 1 6 . Alerts 2 | . . . . . . 2 . Weapon Failures 4 | . . . . 3 . 1 . Overload Shots . | . . . . . . . . Overflow Damage 296 | . 10 . 49 75 3 159 . Projectiles 148 | . 10 . . 75 3 60 . Explosions 148 | . . . 49 . . 99 . Melee . | . . . . . . . . Knockbacks 17 | . . . . . . 17 . Impact . | . . . . . . . . Kinetic 15 | . . . . . . 15 . Secondary 2 | . . . . . . 2 . Self-Inflicted Damage 216 | . . 37 103 . . 76 . Shots 7 | . . 1 3 . . 3 . Rammed 1 | . . . . . . 1 . Targets Rammed 1 | . . . . . . 1 . Kicked . | . . . . . . . . Crushed . | . . . . . . . . Highest Temperature 302 | 54 302 . 215 180 173 254 . Average Temperature 53 | 25 51 . 31 30 47 78 . Received Heat Transfer 1914 | . 150 42 297 855 60 498 12 Effects 2 | . 2 . . . . . . Interference 2 | . 2 . . . . . . Siege Activations . | . . . . . . . . Martial Activations . | . . . . . . . . Shielding Activations . | . . . . . . . . Robots Disrupted . | . . . . . . . . Combat Hostiles . | . . . . . . . . Robots Corrupted 2 | . . . . 1 . 1 . Combat Hostiles 2 | . . . . 1 . 1 . Parts Fried 4 | . . . . 2 . 2 . Impact Corruptions . | . . . . . . . . Robots Melted 1 | . . . . . 1 . . Combat Hostiles 1 | . . . . . 1 . . Parts Melted 15 | 3 5 . 2 1 4 . . Heat Transferred 8184 | 148 2072 100 597 1665 814 2788 . Parts Sabotaged . | . . . . . . . . Parts Stolen . | . . . . . . . . Parts Stripped . | . . . . . . . . Power Chain Reactions 8 | . . 1 5 . . 2 . Alert | -11 -10 -10 -8 -8 -8 -6 -6 ------- Run | Yrd Mat Sub Mat Sto Rec Fac Ext Maximum Alert Level 2 | . . . 1 1 . 2 1 Low Security (%) 67 | 100 100 . 26 20 100 62 83 Level 1 31 | . . . 73 79 . 35 16 Level 2 . | . . . . . . 2 . Level 3 . | . . . . . . . . Level 4 . | . . . . . . . . Level 5 . | . . . . . . . . High Security . | . . . . . . . . Max Security . | . . . . . . . . Peak Influence 423 | 10 111 . 387 343 128 423 200 Initial 200 | . . . . 142 128 100 200 Average 139 | 2 44 . 240 268 16 174 174 Influence Increases 3176 | 15 440 110 583 682 29 1317 . Destroy 0b10 Robot/C 1680 | . 280 80 300 420 . 600 . Destroy 0b10 Robot/NC 135 | 15 20 . 20 15 . 65 . Destroy Leader 396 | . 62 . 72 102 . 160 . Successful Hack 65 | . . . 16 32 . 17 . Disable Machine 165 | . . . . 45 15 105 . Anti-Garrison Action 300 | . . . 150 . . 150 . Destroy Structure 80 | . 3 . 25 8 14 30 . Advance Influence 100 | . . . . . . 100 . Lose Combat Pursuer 255 | . 75 30 . 60 . 90 . Influence Decreases 3026 | 15 440 110 246 689 359 906 261 Entered New Map 608 | . . . . 195 202 . 211 Time Decay 1888 | 15 390 110 166 404 117 636 50 Lost Part 530 | . 50 . 80 90 40 270 . Squads Dispatched 26 | . 4 . 5 2 . 15 . Investigation 3 | . 2 . . 1 . . . Extermination 5 | . . . . . . 5 . Reinforcement 11 | . 2 . 2 1 . 6 . Assault 4 | . . . 2 . . 2 . Garrison 3 | . . . 1 . . 2 . Intercept . | . . . . . . . . Searches Triggered . | . . . . . . . . Construction Impeded 2 | . . . . . . 2 . Haulers Reinforced 2 | . . . . . . 2 . Active Scanning Responses . | . . . . . . . . Cargo Convoy Interrupts . | . . . . . . . . Stealth | -11 -10 -10 -8 -8 -8 -6 -6 --------- Run | Yrd Mat Sub Mat Sto Rec Fac Ext Distress Signals 6 | . 1 . 2 2 . 1 . Communications Jammed . | . . . . . . . . Distress Signals . | . . . . . . . . Times Spotted 144 | . 26 6 26 33 8 43 2 Peak Tracking Total 8 | . 4 6 8 7 2 8 4 Tactical Retreats 13 | . 4 1 . 2 2 4 . Traps | -11 -10 -10 -8 -8 -8 -6 -6 ------- Run | Yrd Mat Sub Mat Sto Rec Fac Ext Traps Triggered 4 | . 3 . . . . 1 . Indirectly . | . . . . . . . . Trap Hack Attempts . | . . . . . . . . Triggered . | . . . . . . . . Disarmed . | . . . . . . . . Reprogrammed . | . . . . . . . . Reused . | . . . . . . . . Traps Extracted . | . . . . . . . . Installed . | . . . . . . . . Triggered . | . . . . . . . . Machines | -11 -10 -10 -8 -8 -8 -6 -6 ---------- Run | Yrd Mat Sub Mat Sto Rec Fac Ext Machines Disabled 14 | . . . 1 3 1 8 1 Max in Single Turn 1 | . . . 1 1 1 1 1 Garrison Access 2 | . . . 1 . . 1 . Machines Repaired . | . . . . . . . . Machines Dismantled . | . . . . . . . . Machines Sabotaged . | . . . . . . . . Overloaded Fab Kills . | . . . . . . . . Hacking | -11 -10 -10 -8 -8 -8 -6 -6 --------- Run | Yrd Mat Sub Mat Sto Rec Fac Ext Machines Accessed 11 | . . . 1 4 5 1 . Terminals 8 | . . . 1 3 3 1 . Fabricators . | . . . . . . . . Repair Stations . | . . . . . . . . Recycling Units 2 | . . . . 1 1 . . Scanalyzers . | . . . . . . . . Garrison Access . | . . . . . . . . Total Hacks 33 | . . . 3 6 18 6 . Successful 20 | . . . 1 4 11 4 . Failed 13 | . . . 2 2 7 2 . Catastrophic 2 | . . . . 1 1 . . Database Lockouts . | . . . . . . . . Manual 10 | . . . . 1 7 2 . Terminals 21 | . . . 3 5 7 6 . Fabricators . | . . . . . . . . Repair Stations . | . . . . . . . . Recycling Units 4 | . . . . 1 3 . . Scanalyzers . | . . . . . . . . Garrison Access . | . . . . . . . . Terminal Hacks 16 | . . . 1 3 10 2 . Record 6 | . . . . . 6 . . Robot Analysis 1 | . . . . . . 1 . Open Door 2 | . . . . 2 . . . Level Access Points 1 | . . . . 1 . . . Branch Access Points 1 | . . . 1 . . . . Recycling Unit Index 1 | . . . . . . 1 . Zone Layout 2 | . . . . . 2 . . Release Object 2 | . . . . . 2 . . Fabricator Hacks . | . . . . . . . . Repair Station Hacks . | . . . . . . . . Recycling Unit Hacks 2 | . . . . 1 1 . . Retrieve Components 2 | . . . . 1 1 . . Scanalyzer . | . . . . . . . . Garrison Access Hacks . | . . . . . . . . Unauthorized Hacks 2 | . . . . . . 2 . Terminals 2 | . . . . . . 2 . Botnet 1 | . . . . . . 1 . Operators 1 | . . . . . . 1 . Fabricators . | . . . . . . . . Repair Stations . | . . . . . . . . Recycling Units . | . . . . . . . . Scanalyzers . | . . . . . . . . Garrison Access . | . . . . . . . . Data Cores Recovered 1 | . . . . . . 1 . Used 1 | . . . . . . 1 . Hacking Detections 7 | . . . 1 2 3 1 . Full Trace Events 3 | . . . . 1 2 . . Feedback Events . | . . . . . . . . Feedback Blocked . | . . . . . . . . Robot Schematics Acquired . | . . . . . . . . Robots Built . | . . . . . . . . Authchips . | . . . . . . . . Time . | . . . . . . . . Total Robot Build Rating . | . . . . . . . . Part Schematics Acquired . | . . . . . . . . Parts Built . | . . . . . . . . Authchips . | . . . . . . . . Time . | . . . . . . . . Total Part Build Rating . | . . . . . . . . Part Studies Acquired . | . . . . . . . . Parts Repaired . | . . . . . . . . Time . | . . . . . . . . Parts Recycled . | . . . . . . . . Recycled Matter . | . . . . . . . . Retrieved Matter . | . . . . . . . . Retrieved Components 9 | . . . . 9 . . . Parts Scanalyzed . | . . . . . . . . Part Schematics Acquired . | . . . . . . . . Parts Damaged . | . . . . . . . . Bothacking | -11 -10 -10 -8 -8 -8 -6 -6 ------------ Run | Yrd Mat Sub Mat Sto Rec Fac Ext Used RIF Installer . | . . . . . . . . Robots Hacked . | . . . . . . . . Non-combat . | . . . . . . . . Combat . | . . . . . . . . Robot Hacks Applied . | . . . . . . . . Relay Couplers Released 3 | . . . 1 . . 2 . Machine Destruction 3 | . . . 1 . . 2 . Fabnet Peak Effective % . | . . . . . . . . Robots Rewired . | . . . . . . . . Allies Hacked . | . . . . . . . . Hacks Repelled . | . . . . . . . . Allies | -11 -10 -10 -8 -8 -8 -6 -6 -------- Run | Yrd Mat Sub Mat Sto Rec Fac Ext Total Allies . | . . . . . . . . Largest Group . | . . . . . . . . Highest-Rated Group . | . . . . . . . . Highest-Rated Ally . | . . . . . . . . Total Orders . | . . . . . . . . Ally Attacks . | . . . . . . . . Total Damage . | . . . . . . . . Kills . | . . . . . . . . Allies Corrupted . | . . . . . . . . Allies Melted . | . . . . . . . . Intel | -11 -10 -10 -8 -8 -8 -6 -6 ------- Run | Yrd Mat Sub Mat Sto Rec Fac Ext Active Infowar (turns) 611 | 9 373 7 . . . 103 119 Optics 222 | . . . . . . 103 119 Structural 130 | . . 7 . . . 4 119 Seismic 382 | 9 373 . . . . . . Robot Analysis Total 1 | . . . . . . 1 . Derelict Logs Recovered 1 | . . 1 . . . . . Drone Launches . | . . . . . . . . Drone Recoveries . | . . . . . . . . Exploration | -11 -10 -10 -8 -8 -8 -6 -6 ------------- Run | Yrd Mat Sub Mat Sto Rec Fac Ext Turns Passed 6813 | 82 1145 829 390 968 1040 2240 119 Spaces Moved 4259 | 55 769 499 172 405 732 1475 152 Core 343 | 3 . . . . . 188 152 Treads 1325 | . 175 499 172 405 57 17 . Legs 417 | . . . . . . 417 . Wheels 2174 | 52 594 . . . 675 853 . Hover . | . . . . . . . . Flight . | . . . . . . . . Fastest Speed 50 | 50 80 160 160 160 115 50 50 Average Speed 124 | 87 108 160 160 160 122 115 50 Slowest Speed 330 | 90 240 160 160 240 240 330 50 Overloaded Moves . | . . . . . . . . Propulsion Burnouts . | . . . . . . . . Robots Hopped . | . . . . . . . . Potential Cave-ins . | . . . . . . . . Cave-ins Triggered . | . . . . . . . . Exploration Rate (%) 46 | 3 97 40 19 62 90 36 23 Regions Visited 7 Branch Regions 4 Pre-discovered Areas 1 | . . 1 . . . . . Known Exits Taken 1 | . . . 1 . . . . Unknown Exits Taken 6 | 1 1 1 . 1 1 1 . Scrap Searched . | . . . . . . . . Spaces Dug 1 | . . . . . 1 . . Terrain Destroyed 73 | . . 3 22 6 12 30 . Melee . | . . . . . . . . Projectile 34 | . . . . 6 12 16 . AOE 39 | . . 3 22 . . 14 . Terrain Rammed . | . . . . . . . . Walls Destroyed . | . . . . . . . . Machines Disabled . | . . . . . . . . Actions | -11 -10 -10 -8 -8 -8 -6 -6 --------- Run | Yrd Mat Sub Mat Sto Rec Fac Ext Total 5182 | 71 950 511 229 586 841 1800 194 Wait 335 | . 59 2 . 62 55 122 35 Move 4252 | 54 768 498 171 404 731 1474 152 Hop . | . . . . . . . . Pick Up 70 | 4 23 . 9 8 3 22 1 Fast Attach 51 | 6 4 . 5 12 3 20 1 Attach 34 | . 4 . 9 2 5 12 2 Detach 21 | . . . 2 1 8 9 1 Swap 28 | . 9 2 . 8 3 6 . Drop 53 | . 13 . 4 13 8 14 1 Fire 337 | 7 70 9 29 76 25 120 1 Melee . | . . . . . . . . Ram 1 | . . . . . . 1 . Kick . | . . . . . . . . Crush . | . . . . . . . . Escape Stasis . | . . . . . . . . Rewire . | . . . . . . . . Trap . | . . . . . . . . Miscellaneous . | . . . . . . . . Route ------- -11/Scrapyard -10/Materials (discovered 6 exits: [*Mat x3] / [*Min x2] / [*Sub]) -10/Subcaves -8/Materials (discovered 3 exits: *Fac x2 / *Sto) -8/Storage (discovered 2 exits: *Fac / *Rec) -8/Recycling -6/Factory (discovered 2 exits: *Fac / [*Ext]) -6/Extension History --------- Turn | Location | Event 12 | -11/Scrapyard | Discovered new exit (range 15) 83 | -11/Scrapyard | Entered Materials 196 | -10/Materials | Discovered new exit (range 8) 281 | -10/Materials | Discovered new exit (range 13) 316 | -10/Materials | Build established: Mutant 379 | -10/Materials | Discovered new exit (range 14) 386 | -10/Materials | Discovered new exit (range 14) 618 | -10/Materials | Core integrity fell below 50% 664 | -10/Materials | Lost 3 parts (1p1u1w) 864 | -10/Materials | Discovered new exit (range 13) 1222 | -10/Materials | Discovered new exit (range 5) 1228 | -10/Materials | Entered Subcaves 1828 | -10/Subcaves | Core integrity fell below 20% 1903 | -10/Subcaves | A swath of the cavern ceiling suddenly collapsed 2033 | -10/Subcaves | Discovered new exit (range 15) 2036 | -10/Subcaves | Learned location of Zion (-7) 2036 | -10/Subcaves | Met a Zionite searching for "candidates" 2044 | -10/Subcaves | Learned location of 1 exit from Materials 2057 | -10/Subcaves | Entered Materials 2057 | -8/Materials | Evolved 4 slots: Propulsion x1, Utility x2, Weapon x1 2058 | -8/Materials | Identified exit to Factory 2107 | -8/Materials | Identified exit to Storage 2194 | -8/Materials | Lost 3 parts (3w) 2259 | -8/Materials | Destroyed 7 combat bots 2259 | -8/Materials | Lost 3 parts (1n1u1w) 2341 | -8/Materials | Discovered exit to Factory (range 13) 2447 | -8/Materials | Entered Storage 3337 | -8/Storage | Core integrity fell below 50% 3409 | -8/Storage | Used back door to open Recycling access 3409 | -8/Storage | Discovered new exit (range 5) 3415 | -8/Storage | Entered Recycling 3636 | -8/Recycling | Lost 3 parts (1p1n1w) 3739 | -8/Recycling | Discovered new exit (range 5) 3906 | -8/Recycling | Build established: Gunner 4078 | -8/Recycling | Entered Scraplab 4098 | -8/Recycling | Found Prototype Device 4098 | -8/Recycling | Identified Scrap Engine 4455 | -8/Recycling | Entered Factory 4455 | -6/Factory | Evolved 4 slots: Propulsion x1, Utility x3 4645 | -6/Factory | Destroyed 7 combat bots 5394 | -6/Factory | Build established: Mutant 5421 | -6/Factory | Discovered new exit (range 16) 5433 | -6/Factory | Identified exit to Factory 5485 | -6/Factory | Spotted B-75 Beast 5545 | -6/Factory | Core integrity fell below 50% 5571 | -6/Factory | Destroyed B-75 Beast 5608 | -6/Factory | Lost 12 parts (1p4n5u2w) 5996 | -6/Factory | Build established: Scavenger-Tank 6497 | -6/Factory | Garrison activated, responded to threat 6576 | -6/Factory | Core integrity fell below 20% 6591 | -6/Factory | Released all parts (4) 6622 | -6/Factory | Lost 11 parts (1p3n4u3w) 6684 | -6/Factory | Discovered new exit (range 9) 6695 | -6/Factory | Entered Extension 6769 | -6/Extension | Spotted B-75 Beast 6811 | -6/Extension | Spotted B-75 Beast 6814 | -6/Extension | Destroyed by B-75 Beast with Heavy Plasma Cannon Last Messages --------------- 06676_ Acquired Unknown Device. 06676_ Identified Focal Shield. 06684_ EXIT=FOUND 06689_ Dropped Angular Momentum Engine. 06690_ Acquired Lgt. Fission Core. 06693_ Drone sends a signal. 06693_ Acquired Imp. Cryofiber Web. LOCATION=UNKNOWN GOAL=ESCAPE 06699_ System corrupted: Matter fused (-9). 06732_ System corrupted: Matter fused (-10). 06743_ Machine disabled. 06746_ Acquired Prototype Storage. 06746_ Identified Imp. Matter Compressor. 06747_ Dropped Imp. Matter Compressor. 06749_ System corrupted: Substantial component data lost. 06749_ Extracted 10 matter. 06750_ Acquired Imp. Matter Compressor. 06793_ System corrupted: Matter fused (-10). 06812_ Penetrated by Slug. Map ----- +----------------------------------------------------+ | ?????????????????????????????????????????????????? | | ?????????????????????????????????????????????????? | | ?????????????????????????????????????????????????? | | ?????????????????????????????????????????????????? | | ?????????????????????????????????????????????????? | | ?????????????????????????????????????????????????? | | ?????????????????????????????????????????????????? | | ?????????????????????????????????????????????????? | | ?????????????????????????????????????????????????? | | ?????????????????????????????????????????????????? | | ?????????????????????????????????????????????????? | | ?????????????????????????????????????????????????? | | ?????????????????????????????????????????????????? | | ?????????????????????????????????????????????????? | | ?????????????????????????????????????????????????? | | ?????????????????????????????????????????????????? | | ?????????????????????????????????????????????????? | | ????????????????????????????????????#######??????? | | ???????????????????????????????????? ## ###??????? | | ???????????????????????????????????? "" ?????? | | ?????????????????????????????????? " "????? | | ????????????????????????????????? ???? | | ############################## h ##?? | | ############################## ##?? | | ?? | | @ ??? | | ??? | | ??? | | R t uk ???? | | #+#####+###################### BB BB ???? | | # #### ################# BB BB ????? | | # ### ##????????????????? ????? | | ###### ### ########???????????? ????? | | ############ ##!!####????????????? ????? | | ""##??????????????T#"""#####????? | | """""""""""" """"""##??????????????## ? #####????? | | #####################????????????????????????????? | | | | | | | | | | | | | | | | | | | | | | | | | | | +----------------------------------------------------+ Best States ------------- Heat Dissipation 73 Energy Generation 23 Energy Capacity 290 Matter Stores 300 Matter Capacity 300 Sight Range 22 Terrain Scan Density 210 Power Amplification 20 Armor Coverage 1200 Resistance: KI 20 Propulsion Shielding 66 Evasion (%) 55 Targeting Accuracy 8 Melee Accuracy 8 Recoil Reduction 3 Particle Charging 15 Item Schematics ----------------- None Robot Schematics ------------------ None Fabricated ------------ Nothing Repaired ---------- Nothing Studied --------- None Alien Tech Used ----------------- None Achievements -------------- None Challenges ------------ None Game ------ Seed GuidanceRelayDrivehammer Manual? 0 Play Time 01:10:07 Cumulative 106.0 hours Start 2026.01.26 @ 21:18:45 End 2026.01.26 @ 22:43:05 Sessions 1 Manual Loads 0 Difficulty Rogue Special Mode None Game No. 49 Rogue 49 Adventurer 0 Explorer 0 Win Type - Total 5 Types 4/0/1/0/0/0/0/0/0/0 Lore% 52 Gallery% 55 Achievement% 47 Wizard Run 0 Options --------- Layout 0 ASCII 0 Keyboard 1 Movement Arrows Keybinds 0 Fullscreen 1 Font 18/SmallcapsGlow Map View 76x50 Zoom Use 0% Tactical HUD 1 Map Filters NONE Filters NONE Steam 1 RUN: 323d4c8c-79f8-4dc6-9d24-94caf5e4ccb4